Workbook

Sheet Sheet1
A1: PRELIMINARY ECONOMIC MODEL
A2: Summary | E2: INSTRUCTIONS: | F2: This worksheet is intended to provide guidance on the $0.5-1 Million per mile cost metric. The input values are for example only. This example assumes no disruption of gas service; however, be sure to account for if the proposed technology requires. - Green cells inputs made by Applicants.
A3: Total cost | B3: ($/km) | C3: =C10+C38+D38+E38 -> 448983.6579
A4: Total cost | B4: ($/mile) | C4: =C3/0.621 -> 723001.0595
A5: Coating Material Costs
A6: Material Cost | B6: ($/kg) | C6: 20
A7: Pipe inner diameter | B7: (in) | C7: 12
A8: Coating thickness | B8: (cm) | C8: 0.75
A9: Coating density | B9: (g/cm3) | C9: 2
A10: Coating cost | B10: ($/km) | C10: =3.14*C7*2.54*C8*C9*C6*100 -> 287121.6
A11: Tools Cost
B12: Units | C12: Deposition Tool | D12: Integrity/Inspection Tool | E12: Mapping Tools | F12: Notes by ARPA-E; Applicant may provide additional notes
A13: CAPEX | B13: ($) | C13: 1500000 | D13: 1000000 | E13: 250000 | F13: Assume mapping tools mounted on coating and integrity/inspection tool
A14: Annual return on CAPEX | B14: (%) | C14: 0.2 | D14: 0.2 | E14: 0.2
A15: Useful life | B15: (yrs) | C15: 5 | D15: 5 | E15: 5
A16: Annual amortized cost recovery for tool CAPEX, including Annual return on CAPEX | B16: ($) | C16: =-PMT(C14,C15,C13) -> 501569.5549 | D16: =-PMT(D14,D15,D13) -> 334379.7033 | E16: =-PMT(E14,E15,E13) -> 83594.92582
A17: OPEX
A18: Crew (assume 24x7 operation) | B18: people | C18: 7 | D18: 7 | E18: 7 | F18: 24x7 may not be required
A19: Fully burdended labor rate (including alocation for trucks and tools) | B19: $/year | C19: 125000 | D19: 125000 | E19: 125000
A20: Back office support | B20: $/year | C20: 250000 | D20: 250000 | E20: 250000 | F20: Data Analyis/Overhead
A21: Annual labor costs | C21: =C19*C18+C20 -> 1125000 | D21: =D19*D18+D20 -> 1125000 | E21: 1125000
A22: T&L | B22: $/-person-day | C22: 200 | D22: 200 | E22: 200
A23: T&L | B23: $/yr | C23: =C22*365*C18*$C$26 -> 204400 | D23: =D22*365*D18*$C$26 -> 204400 | E23: 204400 | F23: On road during utilization
A24: Maintenance | B24: % of CAPEX | C24: 0.06 | D24: 0.06 | E24: 0.06
A25: Mobilization/demobilizaton time | B25: weeks | C25: 2 | D25: 1 | E25: 1 | F25: Not used in calc since utilization is low
A26: Utilization | B26: % of year | C26: 0.4 | D26: 0.4 | E26: 0.4
A27: Speed | B27: m/hr | C27: 20 | D27: 50 | E27: 50
A28: Number passes/segment | C28: 1 | D28: 2 | E28: 3 | F28: Assume 1 pass for coating, 2 passes for pre- and post coating for integrity tool, multiple passes for mapping tool
A29: km/yr | C29: =MIN(24*365*C26*C27/1000/C28,24*365*D26*D27/1000/D28,24*365*E26*E27/1000/E28) -> 58.4 | D29: =C29 -> 58.4 | E29: =C29 -> 58.4 | F29: Distance set by slowest tool; likely integrity tool and mapping tools will be used on more pipes than deposition tool
A30: Bi-directional operating range | B30: (m) | C30: 1000 | D30: 1000 | E30: 1000
A31: Number access points per year | C31: =C29*1000/C30 -> 58.4 | D31: =D29*1000/D30 -> 58.4 | E31: =E29*1000/E30 -> 58.4
A32: Cost per access point (assumes tools can share access points) | B32: ($) | C32: 75000 | D32: 0 | E32: 0 | F32: Assume tools share common access point
A33: Number disruptions to gas serivce per segment
A34: Duration disruption per segment | B34: (hr)
A35: Cost of disruption per segment | B35: ($) | F35: TSSP
A37: Total annual cost | B37: ($/yr) | C37: =C16+C21+C23+C24*C13+C31*C32 -> 6300969.555 | D37: =D16+D21+D23+D24*D13+D31*D32 -> 1723779.703 | E37: =E16+E21+E23+E24*E13+E31*E32 -> 1427994.926
A38: Total Annual Costs | B38: ($/km) | C38: =C37/$C$29 -> 107893.3143 | D38: =D37/$C$29 -> 29516.77574 | E38: 24451.96791
A40: Hours gas service disruption | B40: (hr) | C40: 0 | D40: 0 | E40: 0 | F40: By Applicant
A41: Cost gas disruption | B41: ($/yr) | F41: By utility
